[Event "DVM U14 2024"]
[Site "Heidelberg"]
[Date "2024.12.29"]
[Round "6"]
[White "Muller, Anker"]
[Black "Kovalyov, Dima"]
[Result "1/2-1/2"]
[ECO "B10"]
[WhiteElo "1744"]
[BlackElo "1829"]
[Annotator "NA RC"]
[PlyCount "55"]
[EventDate "2024.12.23"]
[EventType "team-tourn"]
[EventRounds "7"]
[EventCountry "GER"]
[SourceTitle "playchess.com"]
[Source "ChessBase"]
[SourceQuality "1"]
[TimeControl "40/5400+30:1800+30"]

1. e4 {[%emt 0:00:07]} c6 {[%emt 0:00:02]} 2. Nf3 {[%emt 0:00:10]} d5 {[%emt 0:00:03]} 3. exd5 {[%emt 0:00:10]} cxd5 {[%emt 0:00:03]} 4. Ne5 {[%emt 0:00:13]} Nc6 {[%emt 0:00:17]} 5. Bb5 {[%emt 0:00:51]} Bd7 {[%emt 0:00:06]} 6. Bxc6 {[%emt 0:00:11]} Bxc6 {[%emt 0:00:07]} 7. d4 {[%emt 0:00:14]} Nf6 {[%emt 0:00:41]} 8. O-O {[%emt 0:00:11]} e6 {[%emt 0:00:09]} 9. c3 {[%emt 0:00:29]} Bd6 {[%emt 0:01:44]} 10. Bg5 {[%emt 0:00:56]} Qc7 {[%emt 0:01:16]} 11. Bf4 {[%emt 0:05:08]} O-O {[%emt 0:06:59]} 12. Nd2 {[%emt 0:01:34]} Nd7 {[%emt 0:09:14]} 13. Nxd7 {[%emt 0:04:08]} Qxd7 {[%emt 0:01:47]} 14. Bxd6 {[%emt 0:00:14]} Qxd6 {[%emt 0:00:04]} 15. Nf3 {[%emt 0:00:13]} Rfe8 {[%emt 0:00:55]} 16. Re1 {[%emt 0:01:20]} f6 {[%emt 0:02:30]} 17. Qc2 {[%emt 0:03:59]} e5 {[%emt 0:04:25]} 18. dxe5 {[%emt 0:03:24]} fxe5 {[%emt 0:00:59]} 19. Rad1 {[%emt 0:02:55]} Qf6 {[%emt 0:07:11]} 20. Re3 {[%emt 0:27:32]} Re7 {[%emt 0:07:58]} 21. Rde1 {[%emt 0:01:38]} Rae8 {[%emt 0:01:52]} 22. Qe2 {[%emt 0:04:47]} e4 {[%emt 0:05:16]} 23. Nd4 {[%emt 0:02:06]} Re5 {[%emt 0:01:33]} 24. h3 {[%emt 0:17:20]} Rf8 {[%emt 0:03:43]} 25. Rf1 {[%emt 0:00:55]} Qg6 {[%emt 0:09:53]} 26. Rg3 {[%emt 0:02:31]} Qf6 {[%emt 0:00:43]} 27. Qe3 {[%emt 0:00:53]} Qf4 {[%emt 0:02:22]} 28. Nxc6 {[%emt 0:03:19]} 1/2-1/2

[Event "DVM U14 2024"]
[Site "Heidelberg"]
[Date "2024.12.29"]
[Round "6"]
[White "Dersewski, Jonas"]
[Black "Glavev, Danail"]
[Result "1/2-1/2"]
[ECO "C44"]
[WhiteElo "1738"]
[BlackElo "1690"]
[Annotator "NA RC"]
[PlyCount "44"]
[EventDate "2024.12.23"]
[EventType "team-tourn"]
[EventRounds "7"]
[EventCountry "GER"]
[SourceTitle "playchess.com"]
[Source "ChessBase"]
[SourceQuality "1"]
[TimeControl "40/5400+30:1800+30"]

1. e4 {[%emt 0:00:02]} e5 {[%emt 0:00:00]} 2. Nf3 {[%emt 0:00:02]} Nc6 {[%emt 0:00:06]} 3. c3 {[%emt 0:00:16]} Bc5 {[%emt 0:01:28]} 4. d4 {[%emt 0:01:01]} exd4 {[%emt 0:00:45]} 5. cxd4 {[%emt 0:00:03]} Bb4+ {[%emt 0:00:30]} 6. Nc3 {[%emt 0:00:09]} d6 {[%emt 0:02:24]} 7. d5 {[%emt 0:00:29]} Bxc3+ {[%emt 0:02:25]} 8. bxc3 {[%emt 0:00:08]} Ne5 {[%emt 0:00:02]} 9. Nxe5 {[%emt 0:02:25]} dxe5 {[%emt 0:00:18]} 10. Be3 {[%emt 0:03:16]} Ne7 {[%emt 0:02:17]} 11. Bd3 {[%emt 0:02:45]} O-O {[%emt 0:00:50]} 12. O-O {[%emt 0:02:15]} f5 {[%emt 0:21:29]} 13. f3 {[%emt 0:13:17]} f4 {[%emt 0:07:51]} 14. Bf2 {[%emt 0:08:06]} b6 {[%emt 0:09:26]} 15. c4 {[%emt 0:00:48]} c5 {[%emt 0:07:32]} 16. dxc6 {[%emt 0:02:17]} Nxc6 {[%emt 0:00:06]} 17. c5 {[%emt 0:00:39]} bxc5 {[%emt 0:22:29]} 18. Bxc5 {[%emt 0:01:30]} Re8 {[%emt 0:01:49]} 19. Bb5 {[%emt 0:06:44]} Qxd1 {[%emt 0:08:15]} 20. Rfxd1 {[%emt 0:00:09]} Bb7 {[%emt 0:00:47]} 21. Rd7 {[%emt 0:05:51]} Na5 {[%emt 0:04:10]} 22. Bb4 {[%emt 0:02:27]} Bc6 {[%emt 0:08:17]} 1/2-1/2

[Event "DVM U14 2024"]
[Site "Heidelberg"]
[Date "2024.12.29"]
[Round "6"]
[White "Geschke, Jonathan"]
[Black "Hahn, Julian"]
[Result "0-1"]
[ECO "C54"]
[WhiteElo "1698"]
[BlackElo "1727"]
[Annotator "NA RC"]
[PlyCount "64"]
[EventDate "2024.12.23"]
[EventType "team-tourn"]
[EventRounds "7"]
[EventCountry "GER"]
[SourceTitle "playchess.com"]
[Source "ChessBase"]
[SourceQuality "1"]
[TimeControl "40/5400+30:1800+30"]

1. e4 {[%emt 0:00:04]} e5 {[%emt 0:00:02]} 2. Nf3 {[%emt 0:00:17]} Nc6 {[%emt 0:00:03]} 3. Bc4 {[%emt 0:00:08]} Bc5 {[%emt 0:00:05]} 4. c3 {[%emt 0:00:14]} Nf6 {[%emt 0:00:07]} 5. d4 {[%emt 0:00:07]} exd4 {[%emt 0:00:06]} 6. e5 {[%emt 0:00:09]} d5 {[%emt 0:00:18]} 7. Bb5 {[%emt 0:00:10]} Ne4 {[%emt 0:01:12]} 8. cxd4 {[%emt 0:00:13]} Bb4+ {[%emt 0:00:10]} 9. Bd2 {[%emt 0:00:34]} Nxd2 {[%emt 0:02:26]} 10. Nbxd2 {[%emt 0:00:15]} Bg4 {[%emt 0:02:20]} 11. Qa4 {[%emt 0:01:04]} Bxd2+ {[%emt 0:02:04]} 12. Nxd2 {[%emt 0:00:18]} Bd7 {[%emt 0:01:20]} 13. Bxc6 {[%emt 0:05:37]} Bxc6 {[%emt 0:00:28]} 14. Qb4 {[%emt 0:01:43]} a5 {[%emt 0:13:10]} 15. Qc3 {[%emt 0:07:39]} Qg5 {[%emt 0:07:27]} 16. O-O {[%emt 0:24:54]} O-O {[%emt 0:20:35]} 17. Nb3 {[%emt 0:00:00]} a4 {[%emt 0:13:40]} 18. Nc5 {[%emt 0:00:00]} Rfe8 {[%emt 0:07:00]} 19. f4 {[%emt 0:11:05]} Qf5 {[%emt 0:08:26]} 20. Rac1 {[%emt 0:02:13]} Bb5 {[%emt 0:07:28]} 21. Rf3 {[%emt 0:08:22]} b6 {[%emt 0:02:00]} 22. Nd3 {[%emt 0:03:08]} c6 {[%emt 0:02:01]} 23. Nb4 {[%emt 0:08:34]} Re6 {[%emt 0:02:37]} 24. a3 {[%emt 0:02:58]} Bc4 {[%emt 0:00:32]} 25. Nc2 {[%emt 0:04:09]} Bb5 {[%emt 0:02:59]} 26. Ne3 {[%emt 0:02:04]} Qe4 {[%emt 0:00:43]} 27. f5 {[%emt 0:02:09]} Rh6 {[%emt 0:00:17]} 28. Rg3 {[%emt 0:01:17]} Re8 {[%emt 0:02:23]} 29. Ng4 {[%emt 0:04:14]} Qf4 {[%emt 0:02:22]} 30. Nxh6+ {[%emt 0:02:58]} Qxh6 {[%emt 0:00:01]} 31. Qe3 {[%emt 0:04:33]} Qh4 {[%emt 0:00:42]} 32. Qg5 {[%emt 0:00:53]} Qxd4+ {[%emt 0:00:43]} 0-1

[Event "DVM U14 2024"]
[Site "Heidelberg"]
[Date "2024.12.29"]
[Round "6"]
[White "Hasanovic, Arian"]
[Black "Sitnik, Arthur"]
[Result "1-0"]
[ECO "C56"]
[WhiteElo "1685"]
[BlackElo "1668"]
[Annotator "NA RC"]
[PlyCount "115"]
[EventDate "2024.12.23"]
[EventType "team-tourn"]
[EventRounds "7"]
[EventCountry "GER"]
[SourceTitle "playchess.com"]
[Source "ChessBase"]
[SourceQuality "1"]
[TimeControl "40/5400+30:1800+30"]

1. e4 {[%emt 0:00:01]} e5 {[%emt 0:00:03]} 2. Nf3 {[%emt 0:00:04]} Nc6 {[%emt 0:00:04]} 3. Bc4 {[%emt 0:00:04]} Bc5 {[%emt 0:00:03]} 4. c3 {[%emt 0:00:08]} Nf6 {[%emt 0:00:03]} 5. d4 {[%emt 0:00:06]} exd4 {[%emt 0:00:04]} 6. O-O {[%emt 0:00:06]} Nxe4 {[%emt 0:01:30]} 7. cxd4 {[%emt 0:00:07]} Bb4 {[%emt 0:00:27]} 8. d5 {[%emt 0:01:14]} Ne7 {[%emt 0:00:20]} 9. a3 {[%emt 0:01:21]} Bc5 {[%emt 0:01:26]} 10. b4 {[%emt 0:01:15]} Bb6 {[%emt 0:00:07]} 11. Bd3 {[%emt 0:01:00]} Nf6 {[%emt 0:00:52]} 12. d6 {[%emt 0:01:45]} cxd6 {[%emt 0:00:05]} 13. Bg5 {[%emt 0:16:54]} O-O {[%emt 0:05:45]} 14. Bxf6 {[%emt 0:03:11]} gxf6 {[%emt 0:00:06]} 15. Qd2 {[%emt 0:05:09]} d5 {[%emt 0:03:18]} 16. Qh6 {[%emt 0:07:09]} Ng6 {[%emt 0:00:07]} 17. Nc3 {[%emt 0:02:37]} d4 {[%emt 0:03:11]} 18. Nd5 {[%emt 0:02:15]} d6 {[%emt 0:01:52]} 19. Nf4 {[%emt 0:03:27]} Bg4 {[%emt 0:20:31]} 20. h3 {[%emt 0:23:14]} Bxf3 {[%emt 0:00:28]} 21. gxf3 {[%emt 0:00:11]} Kh8 {[%emt 0:00:25]} 22. Bxg6 {[%emt 0:00:28]} fxg6 {[%emt 0:00:29]} 23. Nxg6+ {[%emt 0:00:40]} Kg8 {[%emt 0:00:09]} 24. Qxf8+ {[%emt 0:00:58]} Qxf8 {[%emt 0:00:08]} 25. Nxf8 {[%emt 0:00:08]} Kxf8 {[%emt 0:00:07]} 26. Rfe1 {[%emt 0:00:47]} Re8 {[%emt 0:01:32]} 27. Rxe8+ {[%emt 0:08:25]} Kxe8 {[%emt 0:00:06]} 28. Kf1 {[%emt 0:00:19]} Kf7 {[%emt 0:00:17]} 29. Re1 {[%emt 0:01:15]} a6 {[%emt 0:02:59]} 30. Rc1 {[%emt 0:03:06]} Ke6 {[%emt 0:02:55]} 31. Rc8 {[%emt 0:01:00]} Kf5 {[%emt 0:00:44]} 32. Rb8 {[%emt 0:03:30]} d3 {[%emt 0:00:50]} 33. Ke1 {[%emt 0:05:58]} Kf4 {[%emt 0:01:31]} 34. Rxb7 {[%emt 0:02:47]} Bd4 {[%emt 0:00:05]} 35. Kd2 {[%emt 0:00:26]} Kxf3 {[%emt 0:01:08]} 36. Kxd3 {[%emt 0:00:11]} Bxf2 {[%emt 0:00:05]} 37. Rf7 {[%emt 0:00:39]} Bh4 {[%emt 0:01:30]} 38. Rxh7 {[%emt 0:00:26]} Kg3 {[%emt 0:00:36]} 39. Rd7 {[%emt 0:00:56]} Kxh3 {[%emt 0:00:53]} 40. Rxd6 {[%emt 0:01:03]} f5 {[%emt 0:00:06]} 41. Rg6 {[%emt 0:36:00]} f4 {[%emt 0:30:17]} 42. Ke4 {[%emt 0:00:00]} Bg3 {[%emt 0:00:00]} 43. Kf3 {[%emt 0:00:00]} Kh4 {[%emt 0:00:00]} 44. Rxa6 {[%emt 0:00:00]} Kg5 {[%emt 0:00:00]} 45. b5 {[%emt 0:00:00]} Be1 {[%emt 0:00:00]} 46. b6 {[%emt 0:00:00]} Bc3 {[%emt 0:00:00]} 47. b7 {[%emt 0:00:00]} Be5 {[%emt 0:00:00]} 48. Ra5 {[%emt 0:00:00]} Kf6 {[%emt 0:00:00]} 49. Rxe5 {[%emt 0:00:00]} Kxe5 {[%emt 0:00:00]} 50. b8=Q+ {[%emt 0:00:08]} Kd4 {[%emt 0:00:00]} 51. Qxf4+ {[%emt 0:00:00]} Kc3 {[%emt 0:00:00]} 52. Qd6 {[%emt 0:00:00]} Kc4 {[%emt 0:00:00]} 53. Ke4 {[%emt 0:00:00]} Kb5 {[%emt 0:00:00]} 54. Qc7 {[%emt 0:00:00]} Ka6 {[%emt 0:00:00]} 55. Qb8 {[%emt 0:00:00]} Ka5 {[%emt 0:00:00]} 56. Kd5 {[%emt 0:00:00]} Ka6 {[%emt 0:00:00]} 57. a4 {[%emt 0:00:00]} Ka5 {[%emt 0:00:00]} 58. Qb5# {[%emt 0:00:00]} 1-0

[Event "DVM U14 2024"]
[Site "Heidelberg"]
[Date "2024.12.29"]
[Round "6"]
[White "Mueller, Maximilian"]
[Black "Zielke, Constantin"]
[Result "0-1"]
[ECO "D02"]
[WhiteElo "1679"]
[BlackElo "1543"]
[Annotator "NA RC"]
[PlyCount "56"]
[EventDate "2024.12.23"]
[EventType "team-tourn"]
[EventRounds "7"]
[EventCountry "GER"]
[SourceTitle "playchess.com"]
[Source "ChessBase"]
[SourceQuality "1"]
[TimeControl "40/5400+30:1800+30"]

1. d4 {[%emt 0:00:01]} d5 {[%emt 0:00:01]} 2. Bf4 {[%emt 0:00:09]} Nf6 {[%emt 0:02:50]} 3. Nf3 {[%emt 0:00:08]} Bf5 {[%emt 0:00:08]} 4. e3 {[%emt 0:00:17]} e6 {[%emt 0:00:13]} 5. Bd3 {[%emt 0:00:28]} Bg6 {[%emt 0:00:25]} 6. Bxg6 {[%emt 0:02:09]} hxg6 {[%emt 0:00:49]} 7. h3 {[%emt 0:00:19]} Bd6 {[%emt 0:00:18]} 8. Bxd6 {[%emt 0:03:40]} Qxd6 {[%emt 0:00:33]} 9. Nbd2 {[%emt 0:00:32]} Nbd7 {[%emt 0:00:28]} 10. c3 {[%emt 0:02:08]} e5 {[%emt 0:01:39]} 11. dxe5 {[%emt 0:07:12]} Nxe5 {[%emt 0:00:28]} 12. Nxe5 {[%emt 0:02:36]} Qxe5 {[%emt 0:00:15]} 13. Nf3 {[%emt 0:00:18]} Qe6 {[%emt 0:02:47]} 14. Qd3 {[%emt 0:03:46]} O-O-O {[%emt 0:06:36]} 15. a3 {[%emt 0:13:28]} Nd7 {[%emt 0:03:32]} 16. b4 {[%emt 0:11:17]} f5 {[%emt 0:02:37]} 17. O-O {[%emt 0:06:33]} Rh5 {[%emt 0:02:21]} 18. a4 {[%emt 0:08:46]} Rdh8 {[%emt 0:02:21]} 19. Rfd1 {[%emt 0:02:22]} f4 {[%emt 0:09:41]} 20. exf4 {[%emt 0:09:40]} Rxh3 {[%emt 0:25:48]} 21. gxh3 {[%emt 0:07:55]} Qxh3 {[%emt 0:00:08]} 22. Nh2 {[%emt 0:00:06]} Qxh2+ {[%emt 0:00:09]} 23. Kf1 {[%emt 0:00:04]} Qxf4 {[%emt 0:02:05]} 24. Qxd5 {[%emt 0:02:21]} Nf6 {[%emt 0:01:09]} 25. Qg2 {[%emt 0:03:29]} Ng4 {[%emt 0:02:59]} 26. Rd3 {[%emt 0:05:00]} Rh1+ {[%emt 0:00:15]} 27. Ke2 {[%emt 0:02:34]} Rxa1 {[%emt 0:00:24]} 28. Rd4 {[%emt 0:01:45]} Ra2+ {[%emt 0:00:31]} 0-1

[Event "DVM U14 2024"]
[Site "Heidelberg"]
[Date "2024.12.29"]
[Round "6"]
[White "Maier, Kalle"]
[Black "Sosnicki, Adrian"]
[Result "0-1"]
[ECO "B02"]
[WhiteElo "1673"]
[BlackElo "1259"]
[Annotator "NA RC"]
[PlyCount "92"]
[EventDate "2024.12.23"]
[EventType "team-tourn"]
[EventRounds "7"]
[EventCountry "GER"]
[SourceTitle "playchess.com"]
[Source "ChessBase"]
[SourceQuality "1"]
[TimeControl "40/5400+30:1800+30"]

1. e4 {[%emt 0:00:02]} d5 {[%emt 0:00:04]} 2. exd5 {[%emt 0:00:05]} Nf6 {[%emt 0:00:04]} 3. Nc3 {[%emt 0:00:29]} Nxd5 {[%emt 0:00:06]} 4. Nxd5 {[%emt 0:00:25]} Qxd5 {[%emt 0:00:06]} 5. d4 {[%emt 0:00:33]} Nc6 {[%emt 0:00:12]} 6. Nf3 {[%emt 0:00:22]} Bg4 {[%emt 0:01:04]} 7. c3 {[%emt 0:09:05]} O-O-O {[%emt 0:02:23]} 8. Be2 {[%emt 0:03:02]} e5 {[%emt 0:03:02]} 9. c4 {[%emt 0:03:14]} Qa5+ {[%emt 0:02:19]} 10. Bd2 {[%emt 0:01:40]} Bb4 {[%emt 0:00:51]} 11. d5 {[%emt 0:06:22]} Bxf3 {[%emt 0:01:07]} 12. Bxf3 {[%emt 0:04:37]} Nd4 {[%emt 0:02:16]} 13. Be4 {[%emt 0:04:05]} f5 {[%emt 0:01:35]} 14. Bb1 {[%emt 0:07:04]} c6 {[%emt 0:01:46]} 15. Bxb4 {[%emt 0:02:41]} Qxb4+ {[%emt 0:00:30]} 16. Qd2 {[%emt 0:00:17]} Qxd2+ {[%emt 0:00:09]} 17. Kxd2 {[%emt 0:00:10]} cxd5 {[%emt 0:00:12]} 18. cxd5 {[%emt 0:00:27]} Rxd5 {[%emt 0:00:18]} 19. Rc1+ {[%emt 0:00:42]} Kb8 {[%emt 0:00:57]} 20. Ke1 {[%emt 0:00:38]} g6 {[%emt 0:02:31]} 21. Bc2 {[%emt 0:02:42]} Rc8 {[%emt 0:01:17]} 22. Bb3 {[%emt 0:02:07]} Rdc5 {[%emt 0:01:38]} 23. Rd1 {[%emt 0:06:06]} Nxb3 {[%emt 0:02:05]} 24. axb3 {[%emt 0:00:09]} b6 {[%emt 0:02:22]} 25. Rd7 {[%emt 0:02:11]} R8c7 {[%emt 0:00:11]} 26. Rxc7 {[%emt 0:02:45]} Kxc7 {[%emt 0:00:07]} 27. Kd2 {[%emt 0:00:08]} a5 {[%emt 0:00:25]} 28. b4 {[%emt 0:00:34]} Rd5+ {[%emt 0:00:46]} 29. Ke2 {[%emt 0:00:34]} h5 {[%emt 0:00:50]} 30. bxa5 {[%emt 0:01:51]} Rxa5 {[%emt 0:00:48]} 31. Rd1 {[%emt 0:00:26]} Rc5 {[%emt 0:00:53]} 32. Rd2 {[%emt 0:00:57]} b5 {[%emt 0:01:11]} 33. Kf3 {[%emt 0:00:45]} b4 {[%emt 0:01:33]} 34. Kg3 {[%emt 0:00:54]} g5 {[%emt 0:00:55]} 35. h4 {[%emt 0:01:58]} g4 {[%emt 0:02:10]} 36. Kh2 {[%emt 0:00:44]} f4 {[%emt 0:08:01]} 37. Rd1 {[%emt 0:02:26]} Rc2 {[%emt 0:04:09]} 38. f3 {[%emt 0:01:21]} gxf3 {[%emt 0:00:29]} 39. Kh3 {[%emt 0:01:10]} fxg2 {[%emt 0:00:29]} 40. b3 {[%emt 0:00:37]} f3 {[%emt 0:00:37]} 41. Ra1 {[%emt 0:31:00]} Kb6 {[%emt 0:30:49]} 42. Rd1 {[%emt 0:00:22]} Kc5 {[%emt 0:00:23]} 43. Ra1 {[%emt 0:00:27]} Kd4 {[%emt 0:00:37]} 44. Rd1+ {[%emt 0:01:03]} Ke3 {[%emt 0:00:35]} 45. Rd5 {[%emt 0:02:14]} g1=N+ {[%emt 0:00:44]} 46. Kg3 {[%emt 0:00:11]} Rg2# {[%emt 0:00:03]} 0-1

[Event "DVM U14 2024"]
[Site "Heidelberg"]
[Date "2024.12.29"]
[Round "6"]
[White "Berbig, Georg"]
[Black "Pflug, Anton"]
[Result "0-1"]
[ECO "C47"]
[WhiteElo "1666"]
[BlackElo "1812"]
[Annotator "NA RC"]
[PlyCount "75"]
[EventDate "2024.12.23"]
[EventType "team-tourn"]
[EventRounds "7"]
[EventCountry "GER"]
[SourceTitle "playchess.com"]
[Source "ChessBase"]
[SourceQuality "1"]
[TimeControl "40/5400+30:1800+30"]

1. e4 {[%emt 0:00:03]} e5 {[%emt 0:00:14]} 2. Nf3 {[%emt 0:00:05]} Nc6 {[%emt 0:00:06]} 3. Nc3 {[%emt 0:00:07]} Nf6 {[%emt 0:00:08]} 4. a3 {[%emt 0:00:17]} d5 {[%emt 0:04:01]} 5. Bb5 {[%emt 0:01:49]} d4 {[%emt 0:03:48]} 6. Ne2 {[%emt 0:03:13]} Bd6 {[%emt 0:01:50]} 7. Bxc6+ {[%emt 0:01:15]} bxc6 {[%emt 0:00:07]} 8. d3 {[%emt 0:00:50]} h6 {[%emt 0:00:58]} 9. Ng3 {[%emt 0:05:21]} Be6 {[%emt 0:02:53]} 10. O-O {[%emt 0:05:07]} O-O {[%emt 0:03:08]} 11. Qe2 {[%emt 0:06:17]} Nd7 {[%emt 0:02:50]} 12. c3 {[%emt 0:13:27]} c5 {[%emt 0:04:25]} 13. Ne1 {[%emt 0:03:27]} f5 {[%emt 0:09:08]} 14. f4 {[%emt 0:11:46]} fxe4 {[%emt 0:11:25]} 15. Nxe4 {[%emt 0:01:06]} Bd5 {[%emt 0:00:12]} 16. Nxd6 {[%emt 0:07:31]} cxd6 {[%emt 0:00:08]} 17. c4 {[%emt 0:00:43]} Bc6 {[%emt 0:03:38]} 18. b4 {[%emt 0:02:42]} Qc7 {[%emt 0:05:06]} 19. Qg4 {[%emt 0:15:09]} Rae8 {[%emt 0:05:35]} 20. fxe5 {[%emt 0:04:10]} Rxf1+ {[%emt 0:00:13]} 21. Kxf1 {[%emt 0:00:12]} Nxe5 {[%emt 0:00:06]} 22. Qg3 {[%emt 0:00:24]} Rf8+ {[%emt 0:02:46]} 23. Ke2 {[%emt 0:02:14]} Qe7 {[%emt 0:02:16]} 24. Kd1 {[%emt 0:01:34]} Ba4+ {[%emt 0:01:12]} 25. Kd2 {[%emt 0:02:12]} d5 {[%emt 0:01:50]} 26. cxd5 {[%emt 0:03:56]} c4 {[%emt 0:02:42]} 27. Bb2 {[%emt 0:06:41]} c3+ {[%emt 0:01:06]} 28. Bxc3 {[%emt 0:00:03]} dxc3+ {[%emt 0:00:08]} 29. Kxc3 {[%emt 0:00:09]} Qf6 {[%emt 0:00:43]} 30. Kd2 {[%emt 0:00:39]} Nc4+ {[%emt 0:00:20]} 31. dxc4 {[%emt 0:00:12]} Qxa1 {[%emt 0:00:07]} 32. d6 {[%emt 0:01:13]} Qd4+ {[%emt 0:02:21]} 33. Nd3 {[%emt 0:00:37]} Qxc4 {[%emt 0:01:16]} 34. Qe5 {[%emt 0:00:41]} Bb5 {[%emt 0:00:29]} 35. Qc3 {[%emt 0:00:56]} Qxd3+ {[%emt 0:00:40]} 36. Qxd3 {[%emt 0:00:05]} Bxd3 {[%emt 0:00:06]} 37. Kxd3 {[%emt 0:00:02]} Rd8 {[%emt 0:00:06]} 38. Kd4 {[%emt 0:00:19]} 0-1

[Event "DVM U14 2024"]
[Site "Heidelberg"]
[Date "2024.12.29"]
[Round "6"]
[White "Meijers, Jaroslav"]
[Black "Freude, Paul"]
[Result "0-1"]
[ECO "D41"]
[WhiteElo "1663"]
[BlackElo "1714"]
[Annotator "NA RC"]
[PlyCount "62"]
[EventDate "2024.12.23"]
[EventType "team-tourn"]
[EventRounds "7"]
[EventCountry "GER"]
[SourceTitle "playchess.com"]
[Source "ChessBase"]
[SourceQuality "1"]
[TimeControl "40/5400+30:1800+30"]

1. d4 {[%emt 0:00:07]} Nf6 {[%emt 0:00:04]} 2. c4 {[%emt 0:00:06]} e6 {[%emt 0:00:08]} 3. Nc3 {[%emt 0:00:11]} d5 {[%emt 0:00:04]} 4. cxd5 {[%emt 0:00:06]} Nxd5 {[%emt 0:00:04]} 5. e4 {[%emt 0:00:26]} Nxc3 {[%emt 0:00:03]} 6. bxc3 {[%emt 0:00:05]} c5 {[%emt 0:00:04]} 7. Nf3 {[%emt 0:04:10]} Nc6 {[%emt 0:02:44]} 8. d5 {[%emt 0:09:40]} exd5 {[%emt 0:03:19]} 9. exd5 {[%emt 0:01:30]} Ne7 {[%emt 0:02:54]} 10. Bb5+ {[%emt 0:25:48]} Bd7 {[%emt 0:00:17]} 11. Qa4 {[%emt 0:01:32]} Nxd5 {[%emt 0:12:23]} 12. Qe4+ {[%emt 0:01:36]} Be7 {[%emt 0:02:45]} 13. Bxd7+ {[%emt 0:26:19]} Qxd7 {[%emt 0:03:47]} 14. O-O {[%emt 0:03:42]} Nf6 {[%emt 0:02:00]} 15. Qf4 {[%emt 0:16:08]} O-O {[%emt 0:00:44]} 16. c4 {[%emt 0:00:45]} Rad8 {[%emt 0:02:48]} 17. Bb2 {[%emt 0:02:15]} Rfe8 {[%emt 0:02:53]} 18. Rfe1 {[%emt 0:02:25]} b6 {[%emt 0:04:23]} 19. Ne5 {[%emt 0:02:22]} Qc7 {[%emt 0:00:53]} 20. Qg3 {[%emt 0:00:39]} Bd6 {[%emt 0:01:19]} 21. f4 {[%emt 0:00:05]} Re6 {[%emt 0:02:36]} 22. Qf2 {[%emt 0:01:00]} Rde8 {[%emt 0:00:41]} 23. Re2 {[%emt 0:00:22]} Ng4 {[%emt 0:01:07]} 24. Qg3 {[%emt 0:00:39]} Nxe5 {[%emt 0:01:10]} 25. f5 {[%emt 0:00:29]} Nf3+ {[%emt 0:00:51]} 26. gxf3 {[%emt 0:00:32]} Bxg3 {[%emt 0:00:10]} 27. fxe6 {[%emt 0:00:18]} Rxe6 {[%emt 0:01:23]} 28. Rxe6 {[%emt 0:00:40]} Bxh2+ {[%emt 0:00:05]} 29. Kf1 {[%emt 0:00:32]} fxe6 {[%emt 0:00:05]} 30. Ke2 {[%emt 0:00:03]} Be5 {[%emt 0:00:11]} 31. Bxe5 {[%emt 0:00:52]} Qxe5+ {[%emt 0:00:03]} 0-1

[Event "DVM U14 2024"]
[Site "Heidelberg"]
[Date "2024.12.29"]
[Round "6"]
[White "Madel, Luca"]
[Black "Luccone, Constantin"]
[Result "1-0"]
[ECO "D02"]
[WhiteElo "1657"]
[BlackElo "1567"]
[Annotator "NA RC"]
[PlyCount "75"]
[EventDate "2024.12.23"]
[EventType "team-tourn"]
[EventRounds "7"]
[EventCountry "GER"]
[SourceTitle "playchess.com"]
[Source "ChessBase"]
[SourceQuality "1"]
[TimeControl "40/5400+30:1800+30"]

1. d4 {[%emt 0:00:11]} d5 {[%emt 0:00:04]} 2. Bf4 {[%emt 0:00:07]} Nf6 {[%emt 0:00:05]} 3. e3 {[%emt 0:00:06]} c5 {[%emt 0:00:12]} 4. c3 {[%emt 0:00:09]} Nc6 {[%emt 0:00:04]} 5. Nf3 {[%emt 0:00:22]} Qb6 {[%emt 0:00:16]} 6. Qc2 {[%emt 0:00:08]} Bf5 {[%emt 0:00:15]} 7. dxc5 {[%emt 0:00:55]} Bxc2 {[%emt 0:00:14]} 8. cxb6 {[%emt 0:00:09]} axb6 {[%emt 0:00:14]} 9. Na3 {[%emt 0:00:24]} Bf5 {[%emt 0:00:23]} 10. Nb5 {[%emt 0:01:47]} Rc8 {[%emt 0:01:21]} 11. Be2 {[%emt 0:01:00]} g6 {[%emt 0:01:17]} 12. O-O {[%emt 0:01:02]} Bg7 {[%emt 0:00:08]} 13. Rfd1 {[%emt 0:02:17]} O-O {[%emt 0:00:41]} 14. Ne5 {[%emt 0:15:06]} Nxe5 {[%emt 0:07:40]} 15. Bxe5 {[%emt 0:00:20]} Be6 {[%emt 0:02:11]} 16. Nc7 {[%emt 0:02:44]} Nd7 {[%emt 0:02:55]} 17. Bxg7 {[%emt 0:01:06]} Kxg7 {[%emt 0:00:08]} 18. Nxd5 {[%emt 0:00:25]} Bxd5 {[%emt 0:00:40]} 19. Rxd5 {[%emt 0:00:10]} Nc5 {[%emt 0:00:32]} 20. Rad1 {[%emt 0:00:53]} e6 {[%emt 0:00:22]} 21. Rd6 {[%emt 0:00:33]} Rc6 {[%emt 0:00:21]} 22. Bb5 {[%emt 0:02:43]} Rxd6 {[%emt 0:00:17]} 23. Rxd6 {[%emt 0:00:15]} Ra8 {[%emt 0:00:13]} 24. a3 {[%emt 0:01:01]} Rc8 {[%emt 0:01:18]} 25. Kf1 {[%emt 0:02:20]} Kf6 {[%emt 0:00:43]} 26. Rxb6 {[%emt 0:01:15]} Rd8 {[%emt 0:00:23]} 27. Ke2 {[%emt 0:00:13]} Ke5 {[%emt 0:00:25]} 28. Bc4 {[%emt 0:04:30]} Ne4 {[%emt 0:01:26]} 29. f4+ {[%emt 0:03:49]} Kf6 {[%emt 0:00:25]} 30. Rxb7 {[%emt 0:03:53]} Nd6 {[%emt 0:00:15]} 31. Rb4 {[%emt 0:01:40]} Nf5 {[%emt 0:00:21]} 32. Bd3 {[%emt 0:00:41]} Nd6 {[%emt 0:00:34]} 33. Rd4 {[%emt 0:00:36]} Ke7 {[%emt 0:00:10]} 34. e4 {[%emt 0:00:46]} Rc8 {[%emt 0:00:33]} 35. e5 {[%emt 0:00:39]} Nb7 {[%emt 0:02:26]} 36. Ba6 {[%emt 0:00:42]} Rc7 {[%emt 0:00:06]} 37. Bxb7 {[%emt 0:00:14]} Rxb7 {[%emt 0:00:02]} 38. Rb4 {[%emt 0:00:10]} 1-0